[Event "British Rapidplay Championship 2023"]
[Site "Mercure Bradford, Bankfield Hotel"]
[Date "2023.04.16"]
[Round "11.11"]
[White "Walker, David J"]
[Black "Larchikov, Maksym"]
[Result "1/2-1/2"]
[TimeControl "15 minutes plus 10 seconds per move"]
[WhiteElo "2250"]
[BlackElo "1871"]

1. c4 {[%clk 00:15:18]} {[%emt 00:00:02]} e6 {[%clk 00:15:16]} {[%emt
00:00:04]} 2. g3 {[%clk 00:15:24]} {[%emt 00:00:04]} d5 {[%clk 00:15:24]}
{[%emt 00:00:03]} 3. Bg2 {[%clk 00:15:32]} {[%emt 00:00:02]} Nf6 {[%clk
00:15:31]} {[%emt 00:00:02]} 4. Nf3 {[%clk 00:15:40]} {[%emt 00:00:01]} Be7
{[%clk 00:15:39]} {[%emt 00:00:02]} 5. O-O {[%clk 00:15:48]} {[%emt 00:00:03]}
O-O {[%clk 00:15:47]} {[%emt 00:00:02]} 6. b3 {[%clk 00:15:55]} {[%emt
00:00:03]} c5 {[%clk 00:15:51]} {[%emt 00:00:06]} 7. e3 {[%clk 00:16:03]}
{[%emt 00:00:03]} Nc6 {[%emt 00:00:12]} 8. Bb2 {[%clk 00:16:01]} {[%emt
00:00:10]} b6 {[%clk 00:15:43]} {[%emt 00:00:16]} 9. Qe2 {[%clk 00:15:45]}
{[%emt 00:00:27]} Bb7 {[%clk 00:15:41]} {[%emt 00:00:12]} 10. d3 {[%clk
00:15:48]} {[%emt 00:00:06]} Qc7 {[%clk 00:15:27]} {[%emt 00:00:24]} 11. Nc3
{[%clk 00:15:46]} {[%emt 00:00:12]} Rac8 {[%clk 00:15:12]} {[%emt 00:00:26]} 12.
Rad1 {[%clk 00:15:14]} {[%emt 00:00:42]} Rfe8 {[%clk 00:13:47]} {[%emt
00:01:34]} 13. e4 {[%clk 00:15:09]} {[%emt 00:00:16]} d4 {[%clk 00:12:55]}
{[%emt 00:01:03]} 14. Nb1 {[%clk 00:15:09]} {[%emt 00:00:09]} Nd7 {[%clk
00:10:58]} {[%emt 00:02:07]} 15. Ne1 {[%clk 00:13:47]} {[%emt 00:01:33]} e5
{[%clk 00:09:42]} {[%emt 00:01:26]} 16. Bh3 {[%clk 00:13:19]} {[%emt 00:00:37]}
Rcd8 {[%clk 00:09:30]} {[%emt 00:00:22]} 17. Bc1 {[%clk 00:13:17]} {[%emt
00:00:12]} Nf8 {[%clk 00:09:10]} {[%emt 00:00:30]} 18. f4 {[%clk 00:13:12]}
{[%emt 00:00:15]} exf4 {[%clk 00:09:08]} {[%emt 00:00:12]} 19. gxf4 {[%clk
00:13:20]} {[%emt 00:00:02]} Bc8 {[%clk 00:09:08]} {[%emt 00:00:10]} 20. Bxc8
{[%clk 00:13:02]} {[%emt 00:00:28]} Qxc8 {[%clk 00:09:13]} {[%emt 00:00:04]} 21.
Kh1 {[%clk 00:13:01]} {[%emt 00:00:12]} f5 {[%clk 00:09:16]} {[%emt 00:00:07]}
22. Nd2 {[%clk 00:12:03]} {[%emt 00:01:09]} g6 {[%clk 00:09:14]} {[%emt
00:00:11]} 23. Qg2 {[%clk 00:11:43]} {[%emt 00:00:29]} Nb8 {[%clk 00:08:35]}
{[%emt 00:00:50]} 24. exf5 {[%clk 00:10:07]} {[%emt 00:01:46]} Qxf5 {[%clk
00:08:31]} {[%emt 00:00:14]} 25. Ne4 {[%clk 00:10:14]} {[%emt 00:00:03]} Nbd7
{[%clk 00:07:39]} {[%emt 00:01:02]} 26. Ng3 {[%clk 00:09:46]} {[%emt 00:00:38]}
Qg4 {[%clk 00:07:08]} {[%emt 00:00:41]} 27. Nf3 {[%clk 00:09:21]} {[%emt
00:00:36]} Kh8 {[%clk 00:05:08]} {[%emt 00:02:09]} 28. Rde1 {[%clk 00:07:41]}
{[%emt 00:01:50]} Bh4 {[%clk 00:04:32]} {[%emt 00:00:47]} 29. Nxh4 {[%clk
00:07:31]} {[%emt 00:00:19]} Qxh4 {[%clk 00:04:36]} {[%emt 00:00:07]} 30. Bd2
{[%clk 00:04:49]} {[%emt 00:02:52]} Nf6 {[%emt 00:00:32]} 31. Ne4 {[%clk
00:04:41]} {[%emt 00:00:15]} Ng4 {[%clk 00:03:09]} {[%emt 00:01:18]} 32. Qg3
{[%clk 00:04:28]} {[%emt 00:00:23]} Qxg3 {[%clk 00:03:10]} {[%emt 00:00:08]} 33.
hxg3 {[%clk 00:04:37]} {[%emt 00:00:01]} Kg7 {[%clk 00:02:48]} {[%emt
00:00:32]} 1/2-1/2

[Event "British Rapidplay Championship 2023"]
[Site "Mercure Bradford, Bankfield Hotel"]
[Date "2023.04.16"]
[Round "11.12"]
[White "Shaw, Peter"]
[Black "Keerthi Kumar, Advait"]
[Result "1-0"]
[TimeControl "15 minutes plus 10 seconds per move"]
[WhiteElo "2231"]
[BlackElo "1742"]

1. d4 {[%clk 00:15:18]} {[%emt 00:00:02]} Nf6 {[%clk 00:15:20]} 2. c4 {[%clk
00:15:26]} {[%emt 00:00:02]} g6 {[%clk 00:15:29]} {[%emt 00:00:01]} 3. Nc3
{[%clk 00:15:35]} Bg7 {[%clk 00:15:38]} 4. e4 {[%clk 00:15:43]} {[%emt
00:00:02]} d6 {[%clk 00:15:47]} 5. Nf3 {[%clk 00:15:52]} {[%emt 00:00:01]} O-O
{[%clk 00:15:56]} 6. Be2 {[%clk 00:16:01]} {[%emt 00:00:01]} e5 {[%clk
00:16:03]} {[%emt 00:00:03]} 7. Be3 {[%clk 00:16:09]} {[%emt 00:00:02]} Nc6
{[%clk 00:16:11]} {[%emt 00:00:01]} 8. d5 {[%clk 00:16:18]} {[%emt 00:00:02]}
Ne7 {[%clk 00:16:21]} 9. Nd2 {[%clk 00:16:26]} {[%emt 00:00:01]} Ne8 {[%clk
00:16:29]} {[%emt 00:00:02]} 10. b4 {[%clk 00:16:34]} {[%emt 00:00:02]} f5
{[%clk 00:16:36]} {[%emt 00:00:03]} 11. f3 {[%clk 00:16:42]} {[%emt 00:00:01]}
f4 {[%clk 00:16:46]} 12. Bf2 {[%clk 00:16:51]} {[%emt 00:00:01]} Nf6 {[%clk
00:16:55]} 13. c5 {[%clk 00:17:00]} {[%emt 00:00:02]} Rf7 {[%clk 00:16:59]}
{[%emt 00:00:05]} 14. Nc4 {[%clk 00:17:01]} {[%emt 00:00:09]} a6 {[%clk
00:16:46]} {[%emt 00:00:23]} 15. cxd6 {[%clk 00:13:06]} {[%emt 00:04:04]} cxd6
{[%clk 00:16:49]} {[%emt 00:00:07]} 16. Bb6 {[%clk 00:13:08]} {[%emt 00:00:08]}
Qd7 {[%clk 00:16:49]} {[%emt 00:00:10]} 17. a4 {[%clk 00:11:34]} {[%emt
00:01:44]} Ne8 {[%clk 00:16:37]} {[%emt 00:00:23]} 18. Ba5 {[%clk 00:10:08]}
{[%emt 00:01:35]} Bf6 {[%clk 00:16:35]} {[%emt 00:00:11]} 19. Nb6 {[%clk
00:09:09]} {[%emt 00:01:10]} Qc7 {[%clk 00:16:31]} {[%emt 00:00:13]} 20. Rc1
{[%clk 00:09:03]} {[%emt 00:00:17]} Bh4+ {[%clk 00:16:03]} {[%emt 00:00:37]} 21.
Kf1 {[%clk 00:09:06]} {[%emt 00:00:08]} Qb8 {[%clk 00:16:06]} {[%emt 00:00:06]}
22. Nxa8 {[%clk 00:09:07]} {[%emt 00:00:09]} Qxa8 {[%clk 00:16:15]} 23. Bb6
{[%clk 00:08:45]} {[%emt 00:00:32]} Bd7 {[%clk 00:16:13]} {[%emt 00:00:12]} 24.
a5 {[%clk 00:08:05]} {[%emt 00:00:51]} Nc8 {[%clk 00:15:57]} {[%emt 00:00:26]}
25. Bg1 {[%clk 00:07:39]} {[%emt 00:00:36]} h5 {[%clk 00:15:15]} {[%emt
00:00:52]} 26. Na4 {[%clk 00:07:44]} {[%emt 00:00:05]} g5 {[%clk 00:15:04]}
{[%emt 00:00:21]} 27. Nb6 {[%clk 00:07:38]} {[%emt 00:00:16]} Nxb6 {[%emt
00:00:03]} 28. Bxb6 {[%clk 00:07:44]} {[%emt 00:00:02]} Rg7 {[%clk 00:14:57]}
{[%emt 00:00:26]} 29. Bd3 {[%clk 00:06:11]} {[%emt 00:01:43]} g4 {[%clk
00:14:57]} {[%emt 00:00:09]} 30. Rg1 {[%clk 00:05:43]} {[%emt 00:00:38]} Nf6
{[%clk 00:14:22]} {[%emt 00:00:45]} 31. Ke2 {[%clk 00:05:36]} {[%emt 00:00:18]}
Qe8 {[%clk 00:13:55]} {[%emt 00:00:37]} 32. Kd2 {[%clk 00:05:23]} {[%emt
00:00:23]} Qg6 {[%clk 00:13:42]} {[%emt 00:00:23]} 33. Qe2 {[%clk 00:05:05]}
{[%emt 00:00:28]} Bg5 {[%clk 00:13:03]} {[%emt 00:00:48]} 34. Kc3 {[%clk
00:04:54]} {[%emt 00:00:21]} Nxd5+ {[%clk 00:12:46]} {[%emt 00:00:27]} 35. exd5
{[%clk 00:04:59]} {[%emt 00:00:05]} Qf6 {[%clk 00:12:46]} {[%emt 00:00:09]} 36.
Kb3 {[%clk 00:04:50]} {[%emt 00:00:19]} Re7 {[%clk 00:12:41]} {[%emt 00:00:16]}
37. Be4 {[%clk 00:04:48]} {[%emt 00:00:12]} Kg7 {[%clk 00:12:38]} {[%emt
00:00:13]} 38. Rc7 {[%clk 00:04:34]} {[%emt 00:00:24]} Qf7 {[%clk 00:12:42]}
{[%emt 00:00:05]} 39. Rgc1 {[%clk 00:04:33]} {[%emt 00:00:12]} Bc6 {[%clk
00:12:17]} {[%emt 00:00:35]} 40. Rxe7 {[%clk 00:04:27]} {[%emt 00:00:16]} Bf6
{[%emt 00:00:01]} 41. Re8 Be7 {[%clk 00:12:25]} 1-0

[Event "British Rapidplay Championship 2023"]
[Site "Mercure Bradford, Bankfield Hotel"]
[Date "2023.04.16"]
[Round "11.13"]
[White "Kisteneva, Liza"]
[Black "Watson, Phil R"]
[Result "0-1"]
[TimeControl "15 minutes plus 10 seconds per move"]
[WhiteElo "2040"]
[BlackElo "2144"]

1. e4 {[%clk 00:15:16]} {[%emt 00:00:03]} c6 {[%clk 00:15:19]} {[%emt
00:00:01]} 2. Nc3 {[%clk 00:15:23]} {[%emt 00:00:04]} d5 {[%clk 00:15:27]}
{[%emt 00:00:02]} 3. Nf3 {[%clk 00:15:30]} {[%emt 00:00:02]} Bg4 {[%clk
00:15:35]} {[%emt 00:00:02]} 4. h3 {[%clk 00:15:38]} {[%emt 00:00:02]} Bxf3
{[%clk 00:15:44]} {[%emt 00:00:02]} 5. Qxf3 {[%clk 00:15:46]} {[%emt 00:00:02]}
e6 {[%clk 00:15:49]} {[%emt 00:00:05]} 6. exd5 {[%clk 00:15:13]} {[%emt
00:00:42]} cxd5 {[%clk 00:15:51]} {[%emt 00:00:08]} 7. d4 {[%clk 00:15:06]}
{[%emt 00:00:17]} Nc6 {[%clk 00:15:58]} {[%emt 00:00:03]} 8. Be3 {[%clk
00:15:06]} {[%emt 00:00:10]} Nf6 {[%clk 00:15:21]} {[%emt 00:00:48]} 9. Bd3
{[%clk 00:15:08]} {[%emt 00:00:08]} Qb6 {[%clk 00:14:26]} {[%emt 00:01:05]} 10.
O-O {[%clk 00:15:00]} {[%emt 00:00:17]} Be7 {[%clk 00:13:47]} {[%emt 00:00:50]}
11. a3 {[%clk 00:14:01]} {[%emt 00:01:09]} O-O {[%clk 00:13:10]} {[%emt
00:00:47]} 12. b4 {[%clk 00:13:17]} {[%emt 00:00:54]} Rac8 {[%clk 00:10:37]}
{[%emt 00:02:42]} 13. Na4 {[%clk 00:11:17]} {[%emt 00:02:10]} Qc7 {[%clk
00:10:36]} {[%emt 00:00:11]} 14. Nc5 {[%clk 00:10:13]} {[%emt 00:01:13]} b6
{[%clk 00:10:21]} {[%emt 00:00:25]} 15. Nb3 {[%clk 00:10:17]} {[%emt 00:00:06]}
e5 {[%clk 00:09:50]} {[%emt 00:00:42]} 16. Bf5 {[%clk 00:10:22]} {[%emt
00:00:04]} Rcd8 {[%clk 00:09:52]} {[%emt 00:00:08]} 17. b5 {[%clk 00:09:33]}
{[%emt 00:01:00]} exd4 {[%clk 00:07:25]} {[%emt 00:02:37]} 18. Bf4 {[%clk
00:07:35]} {[%emt 00:02:07]} Ne5 {[%clk 00:07:05]} {[%emt 00:00:30]} 19. Bxe5
{[%clk 00:05:49]} {[%emt 00:01:56]} Qxe5 {[%clk 00:07:13]} {[%emt 00:00:02]} 20.
Rfe1 {[%clk 00:05:58]} {[%emt 00:00:01]} Ne4 {[%clk 00:05:51]} {[%emt
00:01:32]} 21. Bxe4 {[%clk 00:06:02]} {[%emt 00:00:05]} dxe4 {[%clk 00:05:59]}
{[%emt 00:00:03]} 22. Rxe4 {[%clk 00:06:09]} {[%emt 00:00:02]} Qf6 {[%clk
00:05:47]} {[%emt 00:00:21]} 23. Rf4 {[%clk 00:04:38]} {[%emt 00:01:41]} Qe5
{[%clk 00:04:54]} {[%emt 00:01:03]} 24. Re4 {[%clk 00:04:46]} {[%emt 00:00:02]}
Qf6 {[%clk 00:05:03]} {[%emt 00:00:02]} 25. Qe2 {[%clk 00:03:53]} {[%emt
00:01:03]} Rd7 {[%clk 00:03:15]} {[%emt 00:01:58]} 26. a4 {[%clk 00:02:53]}
{[%emt 00:01:09]} Bb4 {[%clk 00:03:08]} {[%emt 00:00:17]} 27. Rd1 {[%clk
00:02:48]} {[%emt 00:00:15]} Bc3 {[%clk 00:03:07]} {[%emt 00:00:11]} 28. Rd3
{[%clk 00:02:48]} {[%emt 00:00:10]} g6 {[%clk 00:02:59]} {[%emt 00:00:17]} 29.
Re8 {[%clk 00:02:08]} {[%emt 00:00:50]} Qd6 {[%clk 00:02:38]} {[%emt 00:00:31]}
30. Re4 {[%clk 00:01:49]} {[%emt 00:00:29]} Kg7 {[%clk 00:02:05]} {[%emt
00:00:43]} 31. h4 {[%clk 00:01:43]} {[%emt 00:00:16]} h5 {[%clk 00:01:42]}
{[%emt 00:00:32]} 32. Nxd4 {[%clk 00:01:32]} {[%emt 00:00:21]} Qc7 {[%clk
00:01:18]} {[%emt 00:00:34]} 33. Nc6 {[%clk 00:01:21]} {[%emt 00:00:21]} Bf6
{[%clk 00:01:13]} {[%emt 00:00:16]} 34. g3 {[%clk 00:01:25]} {[%emt 00:00:06]}
a6 {[%clk 00:01:13]} {[%emt 00:00:09]} 35. Qd2 {[%clk 00:01:20]} {[%emt
00:00:15]} Rxd3 {[%clk 00:01:13]} {[%emt 00:00:10]} 36. cxd3 {[%clk 00:01:28]}
{[%emt 00:00:02]} axb5 {[%clk 00:01:21]} {[%emt 00:00:02]} 37. axb5 {[%clk
00:01:37]} Ra8 {[%clk 00:01:22]} {[%emt 00:00:08]} 38. d4 {[%clk 00:01:33]}
{[%emt 00:00:14]} Qd7 {[%clk 00:01:22]} {[%emt 00:00:11]} 39. d5 {[%clk
00:01:14]} {[%emt 00:00:30]} Qh3 {[%clk 00:01:16]} {[%emt 00:00:15]} 40. Re1
{[%clk 00:01:19]} {[%emt 00:00:04]} Bxh4 {[%clk 00:01:04]} {[%emt 00:00:22]} 41.
gxh4 {[%clk 00:01:27]} {[%emt 00:00:02]} Ra4 {[%clk 00:01:14]} {[%emt
00:00:01]} 42. f4 {[%clk 00:01:08]} {[%emt 00:00:29]} Qg3+ {[%clk 00:01:21]}
{[%emt 00:00:02]} 43. Kh1 {[%clk 00:01:05]} {[%emt 00:00:14]} Rxf4 {[%clk
00:01:27]} {[%emt 00:00:04]} 44. Qb2+ {[%clk 00:01:06]} {[%emt 00:00:09]} Kh7
{[%clk 00:01:33]} {[%emt 00:00:03]} 0-1

[Event "British Rapidplay Championship 2023"]
[Site "Mercure Bradford, Bankfield Hotel"]
[Date "2023.04.16"]
[Round "11.14"]
[White "Hall, James"]
[Black "Quilter, Thomas A"]
[Result "0-1"]
[TimeControl "15 minutes plus 10 seconds per move"]
[WhiteElo "1809"]
[BlackElo "2134"]

1. e4 {[%clk 00:00:00]} {[%emt 00:21:36]} e5 {[%clk 00:13:55]} {[%emt
00:01:45]} 2. Nf3 {[%clk 00:15:27]} {[%emt 00:00:02]} Nc6 {[%clk 00:14:04]}
{[%emt 00:00:01]} 3. d4 {[%clk 00:15:35]} {[%emt 00:00:02]} exd4 {[%clk
00:14:11]} {[%emt 00:00:02]} 4. Bc4 {[%clk 00:15:44]} {[%emt 00:00:01]} Nf6
{[%clk 00:14:17]} {[%emt 00:00:05]} 5. O-O {[%clk 00:15:51]} {[%emt 00:00:02]}
Nxe4 {[%clk 00:14:23]} {[%emt 00:00:05]} 6. Nc3 {[%clk 00:15:59]} {[%emt
00:00:02]} dxc3 {[%clk 00:14:29]} {[%emt 00:00:04]} 7. Bxf7+ {[%clk 00:16:07]}
{[%emt 00:00:02]} Kxf7 {[%clk 00:14:37]} {[%emt 00:00:02]} 8. Qd5+ {[%clk
00:16:16]} {[%emt 00:00:01]} Kf6 {[%clk 00:14:46]} {[%emt 00:00:01]} 9. Ng5
{[%clk 00:14:37]} {[%emt 00:01:48]} Nd6 {[%clk 00:06:14]} {[%emt 00:08:43]} 10.
Qf3+ {[%clk 00:06:24]} {[%emt 00:08:23]} Kg6 {[%clk 00:04:19]} {[%emt
00:02:05]} 11. g4 {[%clk 00:04:02]} {[%emt 00:02:31]} Ne5 {[%clk 00:03:17]}
{[%emt 00:01:12]} 12. Qxc3 {[%clk 00:03:44]} {[%emt 00:00:29]} Ndf7 {[%clk
00:02:20]} {[%emt 00:01:06]} 13. f4 {[%clk 00:02:22]} {[%emt 00:01:32]} Nxg5
{[%clk 00:01:31]} {[%emt 00:00:59]} 14. Qxe5 {[%clk 00:01:53]} {[%emt
00:00:39]} Qf6 {[%clk 00:01:06]} {[%emt 00:00:36]} 15. f5+ {[%clk 00:01:43]}
{[%emt 00:00:20]} Kf7 {[%clk 00:00:52]} {[%emt 00:00:24]} 16. Qd5+ {[%clk
00:01:33]} {[%emt 00:00:20]} Ke8 {[%clk 00:00:55]} {[%emt 00:00:06]} 17. Bxg5
{[%clk 00:00:51]} {[%emt 00:00:52]} Qxg5 {[%clk 00:00:48]} {[%emt 00:00:16]} 18.
Rae1+ {[%clk 00:00:58]} {[%emt 00:00:03]} Kd8 {[%clk 00:00:29]} {[%emt
00:00:29]} 19. Re4 {[%clk 00:01:01]} {[%emt 00:00:07]} Bd6 {[%clk 00:00:25]}
{[%emt 00:00:14]} 20. Rfe1 {[%clk 00:00:51]} {[%emt 00:00:20]} Qf6 {[%clk
00:00:23]} {[%emt 00:00:12]} 21. h4 {[%clk 00:00:51]} {[%emt 00:00:11]} c6
{[%clk 00:00:29]} {[%emt 00:00:05]} 22. Qc4 {[%clk 00:00:35]} {[%emt 00:00:25]}
Qxh4 {[%clk 00:00:25]} {[%emt 00:00:14]} 23. R1e2 {[%clk 00:00:28]} {[%emt
00:00:17]} Kc7 {[%clk 00:00:27]} {[%emt 00:00:08]} 24. Rd4 {[%clk 00:00:20]}
{[%emt 00:00:18]} b6 {[%clk 00:00:30]} {[%emt 00:00:07]} 25. Rxd6 {[%clk
00:00:25]} {[%emt 00:00:05]} Qg3+ {[%clk 00:00:36]} {[%emt 00:00:04]} 26. Kf1
{[%clk 00:00:19]} {[%emt 00:00:16]} Qxd6 {[%clk 00:00:43]} {[%emt 00:00:03]} 27.
Rd2 {[%clk 00:00:27]} Qe5 {[%clk 00:00:40]} {[%emt 00:00:12]} 28. Re2 {[%clk
00:00:26]} {[%emt 00:00:13]} Qg3 {[%clk 00:00:34]} {[%emt 00:00:14]} 29. Rg2
{[%clk 00:00:19]} {[%emt 00:00:18]} a5 {[%clk 00:00:34]} {[%emt 00:00:11]} 30.
Rxg3 {[%clk 00:00:25]} {[%emt 00:00:03]} Ba6 {[%clk 00:00:43]} 0-1

[Event "British Rapidplay Championship 2023"]
[Site "Mercure Bradford, Bankfield Hotel"]
[Date "2023.04.16"]
[Round "11.15"]
[White "Bramson, Mike"]
[Black "Smith, Andrew P"]
[Result "0-1"]
[TimeControl "15 minutes plus 10 seconds per move"]
[WhiteElo "1864"]
[BlackElo "2125"]

1. e4 {[%clk 00:15:17]} {[%emt 00:00:03]} c5 {[%clk 00:15:14]} {[%emt
00:00:07]} 2. Nf3 {[%clk 00:15:23]} {[%emt 00:00:04]} Nc6 {[%clk 00:15:18]}
{[%emt 00:00:05]} 3. Nc3 {[%clk 00:15:29]} {[%emt 00:00:04]} Nf6 {[%clk
00:15:22]} {[%emt 00:00:07]} 4. d4 {[%clk 00:15:03]} {[%emt 00:00:36]} cxd4
{[%clk 00:15:25]} {[%emt 00:00:06]} 5. Nxd4 {[%clk 00:15:11]} {[%emt 00:00:03]}
e5 {[%clk 00:15:26]} {[%emt 00:00:08]} 6. Ndb5 {[%clk 00:14:47]} {[%emt
00:00:35]} d6 {[%clk 00:15:28]} {[%emt 00:00:08]} 7. Bg5 {[%clk 00:14:02]}
{[%emt 00:00:54]} a6 {[%clk 00:15:30]} {[%emt 00:00:08]} 8. Na3 {[%clk
00:14:00]} {[%emt 00:00:12]} b5 {[%clk 00:15:34]} {[%emt 00:00:07]} 9. Nd5
{[%clk 00:13:49]} {[%emt 00:00:22]} Be7 {[%clk 00:15:37]} {[%emt 00:00:06]} 10.
Bxf6 {[%clk 00:13:27]} {[%emt 00:00:31]} Bxf6 {[%clk 00:15:41]} {[%emt
00:00:07]} 11. c3 {[%clk 00:13:27]} {[%emt 00:00:10]} O-O {[%clk 00:15:44]}
{[%emt 00:00:08]} 12. Nc2 {[%clk 00:12:58]} {[%emt 00:00:38]} Rb8 {[%clk
00:15:39]} {[%emt 00:00:15]} 13. Be2 {[%clk 00:12:07]} {[%emt 00:01:01]} Bg5
{[%clk 00:15:37]} {[%emt 00:00:12]} 14. O-O {[%clk 00:11:29]} {[%emt 00:00:48]}
Ne7 {[%clk 00:14:38]} {[%emt 00:01:09]} 15. Nce3 {[%clk 00:11:15]} {[%emt
00:00:23]} Bxe3 {[%clk 00:13:49]} {[%emt 00:00:59]} 16. Nxe3 {[%clk 00:11:15]}
{[%emt 00:00:10]} Bb7 {[%clk 00:13:35]} {[%emt 00:00:25]} 17. Nd5 {[%clk
00:11:01]} {[%emt 00:00:23]} Bxd5 {[%clk 00:12:25]} {[%emt 00:01:21]} 18. exd5
{[%clk 00:11:08]} {[%emt 00:00:02]} f5 {[%clk 00:11:43]} {[%emt 00:00:53]} 19.
f4 {[%clk 00:10:46]} {[%emt 00:00:32]} Qb6+ {[%clk 00:11:25]} {[%emt 00:00:28]}
20. Kh1 {[%clk 00:10:48]} {[%emt 00:00:07]} Qc5 {[%clk 00:09:35]} {[%emt
00:02:02]} 21. fxe5 {[%clk 00:10:47]} {[%emt 00:00:10]} dxe5 {[%clk 00:09:42]}
{[%emt 00:00:03]} 22. d6 {[%clk 00:10:12]} {[%emt 00:00:45]} Nd5 {[%clk
00:09:24]} {[%emt 00:00:28]} 23. c4 {[%clk 00:10:06]} {[%emt 00:00:16]} Ne3
{[%clk 00:06:59]} {[%emt 00:02:34]} 24. Qc1 {[%clk 00:09:23]} {[%emt 00:00:54]}
Nxf1 {[%clk 00:06:29]} {[%emt 00:00:40]} 25. Qxf1 {[%clk 00:09:29]} {[%emt
00:00:03]} Qxd6 {[%clk 00:06:21]} {[%emt 00:00:19]} 26. cxb5 {[%clk 00:09:31]}
{[%emt 00:00:08]} axb5 {[%clk 00:06:11]} {[%emt 00:00:20]} 27. Bxb5 {[%clk
00:09:33]} {[%emt 00:00:08]} Kh8 {[%clk 00:05:23]} {[%emt 00:00:58]} 28. b3
{[%clk 00:06:55]} {[%emt 00:02:47]} e4 {[%clk 00:05:19]} {[%emt 00:00:15]} 29.
Bc4 {[%clk 00:06:56]} {[%emt 00:00:09]} f4 {[%clk 00:04:57]} {[%emt 00:00:31]}
30. Rd1 {[%clk 00:07:02]} {[%emt 00:00:04]} Qf6 {[%clk 00:04:25]} {[%emt
00:00:42]} 31. Re1 {[%clk 00:06:25]} {[%emt 00:00:48]} Rbe8 {[%clk 00:03:47]}
{[%emt 00:00:47]} 32. Bd5 {[%clk 00:06:28]} {[%emt 00:00:08]} Qd4 {[%clk
00:03:45]} {[%emt 00:00:12]} 33. Rd1 {[%clk 00:06:27]} {[%emt 00:00:11]} Qb2
{[%clk 00:03:47]} {[%emt 00:00:08]} 34. a4 {[%clk 00:06:15]} {[%emt 00:00:22]}
f3 {[%clk 00:03:19]} {[%emt 00:00:38]} 35. gxf3 {[%clk 00:05:58]} {[%emt
00:00:26]} exf3 {[%clk 00:03:27]} {[%emt 00:00:03]} 36. Qh3 {[%clk 00:03:51]}
{[%emt 00:02:17]} f2 {[%clk 00:02:45]} {[%emt 00:00:52]} 37. Rf1 {[%clk
00:03:37]} {[%emt 00:00:24]} Re1 {[%clk 00:02:39]} {[%emt 00:00:16]} 38. Bc4
{[%clk 00:03:37]} {[%emt 00:00:10]} Qe5 {[%clk 00:02:19]} {[%emt 00:00:29]} 39.
Qg2 {[%clk 00:03:32]} {[%emt 00:00:16]} Rxf1+ {[%clk 00:02:01]} {[%emt
00:00:28]} 40. Bxf1 {[%clk 00:03:33]} {[%emt 00:00:08]} Qc5 {[%clk 00:01:44]}
{[%emt 00:00:27]} 41. Qe4 {[%clk 00:03:24]} {[%emt 00:00:20]} Qg5 {[%clk
00:01:44]} {[%emt 00:00:10]} 42. Qg2 {[%clk 00:03:25]} {[%emt 00:00:08]} Qd2
{[%clk 00:01:44]} {[%emt 00:00:10]} 43. Qe4 {[%clk 00:03:20]} {[%emt 00:00:16]}
Qe1 {[%clk 00:01:49]} {[%emt 00:00:04]} 44. Qg2 {[%clk 00:03:00]} {[%emt
00:00:30]} h6 {[%clk 00:01:53]} {[%emt 00:00:07]} 45. h3 {[%clk 00:02:34]}
{[%emt 00:00:36]} Rf5 {[%clk 00:01:00]} {[%emt 00:01:02]} 46. Kh2 {[%clk
00:02:23]} {[%emt 00:00:22]} Qe5+ {[%clk 00:01:04]} {[%emt 00:00:06]} 47. Kh1
{[%clk 00:02:23]} {[%emt 00:00:10]} Qe3 {[%clk 00:01:02]} {[%emt 00:00:13]} 48.
Kh2 {[%clk 00:01:57]} {[%emt 00:00:35]} Rg5 {[%clk 00:00:54]} {[%emt 00:00:17]}
49. Qa8+ {[%clk 00:00:47]} {[%emt 00:01:22]} Kh7 {[%clk 00:01:03]} {[%emt
00:00:01]} 50. Qf8 {[%clk 00:00:31]} {[%emt 00:00:26]} Qg3+ {[%clk 00:01:05]}
{[%emt 00:00:07]} 51. Qb8 {[%emt 00:00:18]} Qe3 {[%emt 00:00:02]} 0-1